bitfinex-derivatives/quotes_BTCF0:USTF0_20250915
["timestamp","ask_amount","ask_price","bid_price","bid_amount"]
[1757899574601,0.08225353,115210.0,115190.0,1.07678384]
[1757899574803,0.08225353,115210.0,115200.0,0.90028904]
[1757899575105,0.10376353,115210.0,115200.0,1.43028904]
[1757899575403,0.10376353,115210.0,115200.0,1.43020904]
[1757899576504,0.08225353,115210.0,115200.0,1.43020904]
[1757899576896,0.10376353,115210.0,115200.0,1.33016]
[1757899577102,0.03531,115200.0,115190.0,0.10000904]
[1757899577292,0.08315868,115200.0,115190.0,0.95404904]
[1757899577494,0.08315868,115200.0,115190.0,1.04082444]
[1757899577702,0.02278524,115200.0,115190.0,1.32082444]
[1757899578404,0.06935868,115200.0,115190.0,1.32082444]
[1757899578600,0.08315868,115200.0,115190.0,1.32182444]
[1757899579103,0.06935868,115200.0,115190.0,1.57182444]
[1757899579404,0.01293,115210.0,115190.0,1.57182444]
[1757899579405,0.0138,115220.0,115210.0,0.0867603]
[1757899579609,0.03664513,115220.0,115210.0,1.57736934]
[1757899579900,0.03664513,115220.0,115210.0,2.16736934]
[1757899580102,0.02284513,115220.0,115210.0,2.16736934]
[1757899580309,0.0138,115240.0,115230.0,0.0867453]
[1757899580606,0.0138,115240.0,115230.0,1.65876325]
[1757899580906,0.0138,115250.0,115240.0,0.0867377]
[1757899581106,0.0138,115250.0,115240.0,1.40428904]
[1757899581400,0.0138,115250.0,115240.0,0.60000904]
[1757899581609,0.0138,115250.0,115240.0,1.39672904]
[1757899581908,0.28531,115250.0,115240.0,1.30772]
[1757899582208,0.28531,115250.0,115240.0,0.02]
[1757899582401,0.34760637,115250.0,115240.0,0.11056]
[1757899582602,0.28531,115250.0,115240.0,0.11056]
[1757899582804,0.03531,115230.0,115220.0,0.16767194]
[1757899583004,0.28531,115230.0,115220.0,0.72000904]
[1757899583206,0.28431,115230.0,115220.0,1.53604904]
[1757899583601,0.28431,115230.0,115220.0,0.91592904]
[1757899584108,0.28431,115230.0,115220.0,0.91892904]
[1757899584309,0.31538194,115230.0,115220.0,0.003]
[1757899584505,0.31538194,115230.0,115220.0,0.41936]
[1757899584908,0.31438194,115230.0,115220.0,0.41936]
[1757899585102,0.31438194,115230.0,115220.0,0.51936904]
[1757899585307,0.0118,115230.0,115220.0,0.51936904]
[1757899585506,0.0118,115230.0,115220.0,0.52336904]
[1757899585711,0.0118,115230.0,115220.0,0.42336]
[1757899585909,0.0118,115230.0,115220.0,0.52336904]
[1757899586112,0.03331,115230.0,115220.0,0.52336904]
[1757899588422,0.03331,115230.0,115220.0,0.42336]
[1757899588616,0.06438194,115230.0,115220.0,0.42336]
[1757899589310,0.31438194,115230.0,115220.0,0.007]
[1757899590210,0.03331,115230.0,115220.0,0.10700904]
[1757899590417,0.0118,115230.0,115220.0,0.10700904]
[1757899590602,0.03331,115230.0,115220.0,0.10700904]
[1757899592309,0.05586254,115230.0,115220.0,0.10700904]
[1757899592514,0.05586254,115230.0,115220.0,0.007]
[1757899593818,0.05586254,115230.0,115220.0,0.10700904]
[1757899596616,0.33693448,115230.0,115220.0,0.007]
[1757899597609,0.30586254,115230.0,115220.0,0.007]
[1757899597812,0.43697964,115230.0,115220.0,0.007]
[1757899598014,0.43697964,115230.0,115190.0,0.2666]
[1757899598212,0.03611,115190.0,115180.0,1.68435469]
[1757899598418,0.05866254,115190.0,115180.0,2.69748373]
[1757899598618,0.05866254,115190.0,115180.0,3.01748373]
[1757899598918,0.03569254,115190.0,115180.0,3.01748373]
[1757899599320,0.03069254,115190.0,115180.0,3.01748373]
[1757899599613,0.02369254,115190.0,115180.0,3.01748373]
[1757899601412,0.02769254,115190.0,115180.0,3.01748373]
[1757899601817,0.03069254,115190.0,115180.0,3.01748373]
[1757899603214,0.03069254,115190.0,115180.0,2.61748373]
[1757899603425,0.03069254,115190.0,115180.0,0.01723469]
[1757899603623,0.05366254,115190.0,115180.0,0.16943469]
[1757899606322,0.01314,115170.0,115160.0,0.11739587]
[1757899606527,0.03611,115170.0,115160.0,1.38043587]
[1757899607114,0.03611,115170.0,115160.0,0.66739587]
[1757899607316,0.03611,115170.0,115160.0,1.49839587]
[1757899608019,0.03811,115170.0,115160.0,1.49839587]
[1757899609520,0.03811,115170.0,115160.0,0.66739587]
[1757899609717,0.03811,115170.0,115160.0,1.49831587]
[1757899609919,0.03811,115170.0,115160.0,1.76491587]
[1757899612425,0.03811,115170.0,115160.0,1.66490683]
[1757899612625,0.03811,115170.0,115160.0,1.76491587]
[1757899613727,0.03811,115170.0,115160.0,1.79084874]
[1757899614227,0.03811,115170.0,115160.0,0.39254191]
[1757899614529,0.03811,115170.0,115160.0,1.22206191]
[1757899615926,0.03811,115170.0,115160.0,0.95546191]
[1757899617226,0.03811,115170.0,115160.0,0.82952]
[1757899617426,0.03811,115170.0,115160.0,0.95546191]
[1757899618434,0.03811,115170.0,115150.0,0.14333401]
[1757899618623,0.03503,115160.0,115150.0,0.14333401]
[1757899618825,0.03503,115160.0,115150.0,0.97169401]
[1757899619528,0.03503,115160.0,115150.0,1.05169401]
[1757899619829,0.03503,115160.0,115150.0,1.05269401]
[1757899620220,0.03503,115160.0,115150.0,0.0183921]
[1757899620528,0.30732741,115160.0,115150.0,0.0183921]
[1757899621030,0.30832741,115160.0,115150.0,0.0183921]
[1757899621629,0.05832741,115160.0,115150.0,0.14433401]
[1757899624529,0.03640741,115160.0,115150.0,0.14433401]
[1757899624723,0.03640741,115160.0,115150.0,1.00433401]
[1757899624923,0.03640741,115160.0,115150.0,1.09113851]
[1757899625125,0.01411,115160.0,115150.0,1.09113851]
[1757899625329,0.01411,115160.0,115150.0,1.00433401]
[1757899626231,0.01411,115160.0,115150.0,1.58077401]
[1757899626727,0.01411,115160.0,115150.0,0.6283921]
[1757899626728,0.05842393,115160.0,115150.0,0.6283921]
[1757899626930,0.05842393,115160.0,115150.0,0.8444321]
[1757899627633,0.05842393,115160.0,115150.0,0.0183921]
[1757899628033,0.05842393,115160.0,115150.0,0.7144721]
[1757899630734,0.05842393,115160.0,115150.0,0.001]
[1757899631137,0.08953707,115160.0,115150.0,0.001]
[1757899633538,0.46547898,115160.0,115150.0,0.001]
[1757899633737,0.48103945,115160.0,115150.0,0.001]
[1757899633939,0.48112001,115160.0,115150.0,0.001]
[1757899634137,0.43436584,115160.0,115150.0,0.001]
[1757899634537,0.30842393,115160.0,115150.0,0.001]
[1757899634839,0.32851282,115160.0,115150.0,0.001]
[1757899635133,0.37826,115160.0,115150.0,0.001]
[1757899635834,0.37826,115160.0,115130.0,0.95022191]
[1757899636139,0.03506,115140.0,115130.0,0.95022191]
[1757899636337,0.05745393,115140.0,115130.0,0.95022191]
[1757899637440,0.05845393,115140.0,115130.0,0.95022191]
[1757899639042,0.08961483,115140.0,115130.0,0.94918191]
[1757899639230,0.01351,115130.0,115120.0,0.14340284]
[1757899639435,0.05745393,115130.0,115120.0,0.58746093]
[1757899639635,0.05745393,115130.0,115120.0,0.95062093]
[1757899640036,0.05745393,115130.0,115120.0,1.07656284]
[1757899640637,0.05745393,115130.0,115120.0,1.08530043]
[1757899641141,0.05745393,115130.0,115120.0,1.07656284]
[1757899641341,0.05745393,115130.0,115120.0,1.07756284]
[1757899642845,0.05745393,115130.0,115120.0,0.12846093]
[1757899643039,0.05745393,115130.0,115120.0,0.95138093]
[1757899643851,0.05745393,115130.0,115120.0,1.46138093]
[1757899645748,0.05745393,115130.0,115120.0,0.01846093]
[1757899645948,0.08861483,115130.0,115120.0,0.84050093]
[1757899646955,0.46455674,115130.0,115120.0,0.01846093]
[1757899647355,0.51130392,115130.0,115120.0,0.01846093]
[1757899647948,0.48014302,115130.0,115120.0,0.01846093]
[1757899648347,0.43342849,115130.0,115120.0,0.01846093]
[1757899648754,0.49557429,115130.0,115120.0,0.01846093]
[1757899649757,0.03506,115110.0,115100.0,0.13012]
[1757899649957,0.06622103,115110.0,115100.0,0.13012]
[1757899650156,0.08864761,115110.0,115100.0,0.13012]
[1757899651557,0.08964761,115110.0,115100.0,0.13012]
[1757899652358,0.05848658,115110.0,115100.0,0.13012]
[1757899653058,0.06048658,115110.0,115100.0,0.13012]
[1757899653359,0.06055274,115110.0,115100.0,0.13012]
[1757899653561,0.03506,115100.0,115090.0,0.12594191]
[1757899653754,0.05755274,115100.0,115090.0,0.19]
[1757899654656,0.05855274,115100.0,115090.0,0.19]
[1757899655759,0.03700274,115100.0,115090.0,0.37594191]
[1757899655960,0.03700274,115100.0,115090.0,0.92594191]
[1757899658161,0.03699998,115100.0,115090.0,0.92594191]
[1757899659360,0.03699998,115100.0,115090.0,0.67594191]
[1757899661062,0.05860998,115100.0,115090.0,0.67594191]
[1757899661461,0.03699998,115100.0,115090.0,0.67594191]
[1757899667564,0.03699998,115100.0,115090.0,1.49214191]
[1757899667872,0.03699998,115100.0,115090.0,1.52760512]
[1757899668975,0.05860998,115100.0,115090.0,0.71140512]
[1757899669273,0.05860998,115100.0,115090.0,1.52708512]
[1757899670375,0.05860998,115100.0,115090.0,1.36568]
[1757899670672,0.05860998,115100.0,115090.0,1.52708512]
[1757899671175,0.03699998,115100.0,115090.0,1.52708512]
[1757899672175,0.0334132,115110.0,115100.0,0.0868422]
[1757899672367,0.04467103,115120.0,115110.0,0.0868346]
[1757899672567,0.01351,115120.0,115110.0,2.03732623]
[1757899672872,0.01351,115120.0,115110.0,1.93732623]
[1757899673975,0.01751,115120.0,115110.0,1.93732623]
[1757899674967,0.01751,115120.0,115110.0,1.93684623]
[1757899675169,0.01751,115120.0,115110.0,1.12208623]
[1757899675370,0.01751,115120.0,115110.0,0.87384651]
[1757899675571,0.01951,115120.0,115110.0,1.03525163]
[1757899675871,0.01951,115120.0,115110.0,1.03518487]
[1757899676270,0.01951,115120.0,115110.0,1.84962487]
[1757899678179,0.01951,115120.0,115110.0,1.58302487]
[1757899679869,0.01951,115120.0,115110.0,1.66985957]
[1757899680479,0.01951,115120.0,115110.0,0.85541957]
[1757899680779,0.01951,115120.0,115110.0,1.58178487]
[1757899681271,0.01951,115120.0,115110.0,1.66861957]
[1757899681478,0.006,115120.0,115110.0,1.66861957]
[1757899681878,0.01885,115120.0,115110.0,1.15541957]
[1757899682071,0.01885,115120.0,115110.0,1.96845957]
[1757899683474,0.01351,115130.0,115120.0,0.0868271]
[1757899683781,0.0129,115140.0,115120.0,1.10816056]
[1757899684078,0.0129,115140.0,115130.0,0.89318918]
[1757899684278,0.0129,115140.0,115130.0,1.72318918]
[1757899684479,0.0129,115140.0,115130.0,1.72314918]
[1757899684779,0.0129,115140.0,115130.0,0.83]
[1757899685073,0.28468,115140.0,115130.0,1.41298918]
[1757899685273,0.30713704,115140.0,115130.0,1.41298918]
[1757899685474,0.30713704,115140.0,115130.0,0.60066918]
[1757899685675,0.31013704,115140.0,115130.0,1.41330918]
[1757899685876,0.31013704,115140.0,115130.0,0.08066918]
[1757899686079,0.31013704,115140.0,115130.0,0.89322918]
[1757899686277,0.31413704,115140.0,115130.0,0.89322918]
[1757899686681,0.31013704,115140.0,115130.0,0.89322918]
[1757899686881,0.31213704,115140.0,115130.0,0.89322918]
[1757899687082,0.31213704,115140.0,115130.0,0.08066918]
[1757899687285,0.31213704,115140.0,115130.0,0.59050918]
[1757899687476,0.31213704,115140.0,115130.0,0.08066918]
[1757899687676,0.31213704,115140.0,115130.0,0.59046918]
[1757899689179,0.28968,115140.0,115130.0,0.59046918]
[1757899689378,0.0179,115140.0,115130.0,1.17046918]
[1757899692085,0.0179,115140.0,115130.0,1.17917902]
[1757899693086,0.0179,115140.0,115130.0,1.46339655]
[1757899694181,0.0179,115140.0,115130.0,1.54406573]
[1757899694381,0.0179,115140.0,115130.0,1.46339655]
[1757899695284,0.0179,115140.0,115130.0,1.83406573]
[1757899695787,0.0179,115140.0,115130.0,1.92088533]
[1757899696590,0.0179,115140.0,115130.0,1.83406573]
[1757899697487,0.0179,115140.0,115130.0,1.92088533]
[1757899698688,0.005,115140.0,115130.0,2.17088533]
[1757899699592,0.0129,115150.0,115140.0,0.086812]
[1757899699792,0.03293889,115160.0,115150.0,0.0868045]
[1757899700088,0.03293889,115160.0,115150.0,1.80571368]
[1757899700388,0.03293889,115160.0,115150.0,1.71890918]
[1757899700988,0.03493889,115160.0,115150.0,1.71890918]
[1757899702288,0.03493889,115160.0,115150.0,0.90726918]
[1757899702487,0.03493889,115160.0,115150.0,1.71834918]
[1757899702686,0.03293889,115160.0,115150.0,0.90726918]
[1757899702887,0.03293889,115160.0,115150.0,1.71826918]
[1757899704886,0.03293889,115160.0,115150.0,1.80507368]
[1757899705286,0.03293889,115160.0,115150.0,1.71826918]
[1757899705486,0.03293889,115160.0,115150.0,1.80507368]
[1757899705988,0.03293889,115160.0,115150.0,1.80419368]
[1757899706891,0.03293889,115160.0,115150.0,1.7235245]
[1757899707091,0.03293889,115160.0,115150.0,0.90726918]
[1757899707490,0.03293889,115160.0,115150.0,1.71710918]
[1757899710496,0.03293889,115160.0,115150.0,1.71650918]
[1757899712596,0.03293889,115160.0,115150.0,0.90726918]
[1757899712794,0.03293889,115160.0,115150.0,1.71634918]
[1757899712998,0.03293889,115160.0,115150.0,1.71582918]
[1757899713600,0.0553825,115160.0,115150.0,1.71582918]
[1757899714605,0.0553825,115160.0,115150.0,0.90726918]
[1757899714797,0.0553825,115160.0,115150.0,1.71562918]
[1757899715299,0.0553825,115160.0,115150.0,0.90726918]
[1757899715599,0.3286125,115160.0,115150.0,0.90726918]
[1757899715901,0.3286125,115160.0,115150.0,1.71562918]
[1757899716895,0.3286125,115160.0,115150.0,1.44902918]
[1757899719302,0.0786125,115160.0,115150.0,1.44902918]
[1757899719491,0.0786125,115160.0,115150.0,1.44858918]
[1757899719694,0.0786125,115160.0,115150.0,1.42858918]
[1757899720403,0.0786125,115160.0,115150.0,0.54]
[1757899720603,0.0786125,115160.0,115150.0,0.88834918]
[1757899727009,0.0786125,115160.0,115150.0,0.08066918]
[1757899727214,0.0786125,115160.0,115150.0,0.80664]
[1757899727411,0.0786125,115160.0,115150.0,0.88730918]
[1757899727903,0.01283,115150.0,115140.0,0.34726918]
[1757899728109,0.05853361,115150.0,115140.0,1.15390918]
[1757899728503,0.05853361,115150.0,115140.0,0.88730918]
[1757899729313,0.05853361,115150.0,115140.0,0.88830918]
[1757899729811,0.05853361,115150.0,115140.0,0.80764]
[1757899730212,0.05853361,115150.0,115140.0,0.88830918]
[1757899735712,0.05853361,115150.0,115140.0,0.888288]
[1757899735912,0.05853361,115150.0,115140.0,0.968936]
[1757899737210,0.01283,115150.0,115140.0,1.8963963]
[1757899738317,0.01283,115150.0,115140.0,1.809584]
[1757899738718,0.01283,115150.0,115140.0,1.56764]
[1757899738919,0.01283,115150.0,115140.0,1.728936]
[1757899740420,0.01283,115150.0,115140.0,1.8963963]
[1757899740616,0.01283,115150.0,115140.0,2.4929963]
[1757899745524,0.01283,115150.0,115140.0,1.6863563]
[1757899745715,0.01283,115150.0,115140.0,2.4908363]
[1757899747323,0.03293889,115160.0,115140.0,2.490831]
[1757899747523,0.03293889,115160.0,115150.0,0.161296]
[1757899747725,0.03293889,115160.0,115150.0,0.671296]
[1757899748126,0.03293889,115160.0,115150.0,0.7581007]
[1757899750225,0.05595889,115160.0,115150.0,1.475376]
[1757899751726,0.03293889,115160.0,115150.0,1.475376]
[1757899752328,0.03293889,115160.0,115150.0,1.741976]
[1757899753027,0.03293889,115160.0,115150.0,1.8287807]
[1757899753520,0.05542335,115160.0,115150.0,1.8287807]
[1757899754622,0.03293889,115160.0,115150.0,1.8287807]
[1757899755527,0.01285,115160.0,115150.0,1.8287807]
[1757899758737,0.01285,115160.0,115150.0,2.031936]
[1757899759537,0.01285,115160.0,115150.0,1.227896]
[1757899759839,0.01285,115160.0,115150.0,2.031896]
[1757899780151,0.01285,115160.0,115150.0,1.8706]
[1757899780353,0.01285,115160.0,115150.0,2.031896]
[1757899782851,0.01285,115160.0,115150.0,2.1187007]
[1757899783055,0.01285,115170.0,115160.0,0.0867972]
[1757899783348,0.01367,115180.0,115170.0,0.0867896]
[1757899783655,0.01367,115180.0,115170.0,1.794976]
[1757899783856,0.01367,115180.0,115170.0,1.89957042]
[1757899785360,0.01367,115180.0,115170.0,1.90057042]
[1757899785955,0.01367,115180.0,115170.0,1.90053042]
[1757899786659,0.01367,115180.0,115170.0,1.97009707]
[1757899787957,0.01367,115180.0,115170.0,2.23669707]
[1757899788861,0.01367,115180.0,115170.0,2.31734507]
[1757899789161,0.01367,115180.0,115170.0,2.23669707]
[1757899789757,0.01367,115180.0,115170.0,2.56734507]
[1757899791356,0.01341,115190.0,115180.0,0.0867823]
[1757899791660,0.01341,115190.0,115180.0,1.1887263]
[1757899792459,0.01341,115190.0,115180.0,1.4387263]
[1757899793061,0.01341,115190.0,115180.0,2.2421663]
[1757899794164,0.01441,115190.0,115180.0,2.2421663]
[1757899794963,0.001,115190.0,115180.0,2.2421663]
[1757899795962,0.001,115190.0,115180.0,2.2587663]
[1757899796361,0.01309,115200.0,115180.0,2.2587663]
[1757899796362,0.01309,115210.0,115190.0,0.0867748]
[1757899796559,0.01309,115210.0,115200.0,1.045224]
[1757899796764,0.01309,115210.0,115200.0,1.985224]
[1757899797162,0.01309,115210.0,115200.0,1.665224]
[1757899797662,0.01509,115210.0,115200.0,1.665224]
[1757899797865,0.01709,115210.0,115200.0,1.584346]
[1757899798165,0.01709,115210.0,115200.0,2.28651916]
[1757899799764,0.01709,115210.0,115200.0,1.39647186]
[1757899800471,0.01509,115210.0,115200.0,2.20063186]
[1757899800669,0.01309,115210.0,115200.0,2.20063186]
[1757899800871,0.01309,115210.0,115200.0,1.39747186]
[1757899801274,0.28461,115210.0,115200.0,1.69072]
[1757899801565,0.28461,115210.0,115200.0,1.771253]
[1757899801770,0.28461,115210.0,115200.0,0.968133]
[1757899801970,0.28461,115210.0,115200.0,1.771213]
[1757899802869,0.28461,115210.0,115200.0,1.42408]
[1757899803071,0.28461,115210.0,115200.0,0.001]
[1757899803270,0.30685093,115210.0,115200.0,0.80404]
[1757899803867,0.30685093,115210.0,115200.0,0.001]
[1757899804174,0.0344,115190.0,115180.0,0.09786625]
[1757899804372,0.05664093,115190.0,115180.0,1.09466625]
[1757899805168,0.05664093,115190.0,115180.0,0.74786625]
[1757899805369,0.05664093,115190.0,115180.0,1.55086625]
[1757899805572,0.05664093,115190.0,115180.0,1.55186625]
[1757899805985,0.03612093,115190.0,115180.0,1.74186625]
[1757899806282,0.01388,115190.0,115180.0,1.74086625]
[1757899808676,0.01388,115190.0,115180.0,2.00746625]
[1757899809367,0.03615054,115190.0,115180.0,2.00746625]
[1757899811674,0.03615054,115190.0,115180.0,2.09424875]
[1757899811870,0.03615054,115190.0,115180.0,2.00746625]
[1757899812175,0.03615054,115190.0,115180.0,2.09424875]
[1757899813578,0.01388,115190.0,115180.0,2.00746625]
[1757899814081,0.01388,115190.0,115180.0,1.20446625]
[1757899814280,0.01388,115190.0,115180.0,2.00730625]
[1757899817885,0.01388,115190.0,115180.0,2.09408875]
[1757899818483,0.01388,115200.0,115180.0,2.09408875]
[1757899818690,0.01388,115200.0,115190.0,0.247841]
[1757899818885,0.01388,115200.0,115190.0,1.137841]
[1757899819593,0.01388,115200.0,115190.0,1.051066]
[1757899820585,0.01488,115200.0,115190.0,1.317666]
[1757899822286,0.01588,115200.0,115190.0,1.317666]
[1757899822893,0.01588,115200.0,115190.0,1.404441]
[1757899826095,0.01488,115200.0,115190.0,1.404441]
[1757899827394,0.01388,115200.0,115190.0,1.404441]
[1757899830192,0.01388,115200.0,115190.0,2.206841]
[1757899834194,0.01309,115210.0,115200.0,0.0867674]
[1757899834401,0.01309,115210.0,115200.0,0.8278334]
[1757899835299,0.01409,115210.0,115200.0,0.8278334]
[1757899836199,0.01409,115210.0,115200.0,1.543306]
[1757899836597,0.01509,115210.0,115200.0,1.543306]
[1757899836903,0.03626,115210.0,115200.0,1.543266]
[1757899837195,0.03626,115210.0,115200.0,0.660533]
[1757899837401,0.03626,115210.0,115200.0,1.462733]
[1757899839098,0.03626,115210.0,115200.0,1.543266]
[1757899839597,0.28626,115210.0,115200.0,1.462693]
[1757899839794,0.28626,115210.0,115200.0,1.462653]
[1757899840497,0.28626,115210.0,115200.0,0.660533]
[1757899840705,0.28626,115210.0,115200.0,1.462653]
[1757899841195,0.30854854,115210.0,115200.0,1.462653]
[1757899844199,0.30854854,115210.0,115200.0,1.543186]
[1757899846503,0.30854854,115210.0,115200.0,1.462653]
[1757899847010,0.30854854,115210.0,115200.0,1.482653]
[1757899847498,0.30854854,115210.0,115200.0,1.563186]
[1757899851909,0.30854854,115210.0,115200.0,0.761066]
[1757899852110,0.30854854,115210.0,115200.0,1.562946]
[1757899853010,0.28737854,115210.0,115200.0,1.562946]
[1757899853607,0.26509,115210.0,115200.0,1.562946]
[1757899854507,0.28732,115210.0,115200.0,0.761066]
[1757899854705,0.28732,115210.0,115200.0,1.562826]
[1757899856113,0.28732,115210.0,115200.0,1.542826]
[1757899858707,0.28732,115210.0,115200.0,0.741066]
[1757899858907,0.28732,115210.0,115200.0,1.542746]
[1757899859810,0.28732,115210.0,115200.0,1.5427853]
[1757899860414,0.28732,115210.0,115200.0,0.7411053]
[1757899860614,0.28732,115210.0,115200.0,1.5427053]
[1757899861016,0.28732,115210.0,115200.0,0.7411053]
[1757899861314,0.05962091,115210.0,115200.0,1.5426653]
[1757899861709,0.01509,115210.0,115200.0,1.5426653]
[1757899861903,0.01509,115210.0,115200.0,1.62321795]
[1757899862112,0.01509,115210.0,115200.0,1.8092653]
[1757899862410,0.01509,115210.0,115200.0,1.0077053]
[1757899862610,0.01509,115210.0,115200.0,1.8092653]
[1757899862912,0.01509,115210.0,115200.0,1.0944731]
[1757899863412,0.01509,115210.0,115200.0,1.8959931]
[1757899864613,0.01509,115210.0,115200.0,1.0944731]
[1757899864809,0.01509,115210.0,115200.0,1.8091853]
[1757899865113,0.01509,115210.0,115200.0,1.88973795]
[1757899865310,0.01509,115210.0,115200.0,1.97650575]
[1757899866609,0.01509,115210.0,115200.0,1.17502575]
[1757899866810,0.01509,115210.0,115200.0,1.97646575]
[1757899867715,0.01509,115210.0,115200.0,1.8959131]
[1757899868411,0.01509,115210.0,115200.0,1.8091453]
[1757899868811,0.01509,115210.0,115200.0,1.88969795]
[1757899870918,0.01509,115210.0,115200.0,1.97646565]
[1757899871614,0.01509,115210.0,115200.0,1.88969795]
[1757899871815,0.01509,115210.0,115200.0,1.0077053]
[1757899872111,0.01509,115210.0,115200.0,1.8089853]
[1757899872511,0.01509,115210.0,115200.0,1.88953795]
[1757899873118,0.01509,115210.0,115200.0,1.8089853]
[1757899875821,0.01509,115210.0,115200.0,1.64788]
[1757899876022,0.01509,115210.0,115200.0,1.88953795]
[1757899876213,0.01509,115210.0,115200.0,2.13953795]
[1757899876419,0.01509,115210.0,115200.0,2.43953795]
[1757899877924,0.01509,115210.0,115200.0,2.52630045]
[1757899878824,0.01509,115210.0,115200.0,2.43953795]
[1757899879124,0.01509,115210.0,115200.0,2.43929795]
[1757899879629,0.01509,115210.0,115200.0,2.17269795]
[1757899883527,0.01509,115210.0,115200.0,2.00945975]
[1757899883830,0.01298,115230.0,115210.0,0.16730695]
[1757899884131,0.01298,115230.0,115220.0,1.04249795]
[1757899884329,0.01298,115230.0,115220.0,1.85249795]
[1757899885331,0.01598,115230.0,115220.0,1.85249795]
[1757899885522,0.003,115230.0,115220.0,1.93924485]
[1757899885728,0.01298,115240.0,115220.0,1.93924485]
[1757899885926,0.01298,115240.0,115230.0,0.1611053]
[1757899886121,0.01298,115240.0,115230.0,1.0811053]
[1757899887831,0.01298,115240.0,115230.0,1.16265795]
[1757899888026,0.01388,115250.0,115230.0,1.17140497]
[1757899888228,0.01388,115250.0,115240.0,1.04233795]
[1757899888434,0.01388,115250.0,115240.0,1.55233795]
[1757899888635,0.01388,115250.0,115240.0,1.88233795]
[1757899889137,0.01388,115250.0,115240.0,0.84]
[1757899889338,0.01388,115250.0,115240.0,1.8017453]
[1757899889533,0.01488,115250.0,115240.0,1.88229795]
[1757899889734,0.01488,115250.0,115240.0,1.08165795]
[1757899889934,0.01488,115250.0,115240.0,1.88225795]
[1757899890734,0.01488,115250.0,115240.0,1.08165795]
[1757899890934,0.01488,115250.0,115240.0,1.88221795]
[1757899891838,0.01488,115250.0,115240.0,1.34825795]
[1757899892240,0.01488,115250.0,115240.0,2.14877795]
[1757899893135,0.01488,115250.0,115240.0,1.34825795]
[1757899893440,0.01488,115250.0,115240.0,2.14877795]
[1757899897432,0.001,115250.0,115240.0,2.14877795]
[1757899897638,0.01388,115260.0,115240.0,2.39877795]
[1757899897941,0.01388,115280.0,115250.0,0.24165795]
[1757899898236,0.0360981,115280.0,115270.0,0.24165795]
[1757899898436,0.01388,115280.0,115270.0,1.10165795]
[1757899898636,0.01388,115280.0,115270.0,1.11922237]
[1757899898840,0.01335,115300.0,115270.0,1.43813215]
[1757899899138,0.03555823,115300.0,115290.0,0.1611053]
[1757899899338,0.03555823,115300.0,115290.0,1.0111053]
[1757899900134,0.03555823,115300.0,115290.0,1.5899853]
[1757899900543,0.05840823,115300.0,115290.0,0.51]
[1757899900840,0.30840823,115300.0,115290.0,1.2487053]
[1757899901033,0.31040823,115300.0,115290.0,1.2487053]
[1757899901946,0.28755823,115300.0,115290.0,1.2487053]
[1757899902633,0.28955823,115300.0,115290.0,1.2487053]
[1757899903645,0.26735,115300.0,115290.0,1.2487053]
[1757899904037,0.2902,115300.0,115290.0,1.4799453]
[1757899904442,0.2882,115300.0,115290.0,1.4799453]
[1757899904642,0.2862,115300.0,115290.0,1.32741338]
[1757899904838,0.2862,115300.0,115290.0,0.67987868]
[1757899905038,0.2862,115300.0,115290.0,1.48859868]
[1757899905240,0.2862,115300.0,115290.0,1.32749338]
[1757899905547,0.2862,115300.0,115290.0,1.48891868]
[1757899905741,0.03550895,115300.0,115290.0,1.86947133]
[1757899905938,0.01335,115300.0,115290.0,1.86947133]
[1757899906145,0.01335,115300.0,115290.0,1.78891868]
[1757899909552,0.01335,115300.0,115290.0,2.05551868]
[1757899910446,0.01335,115300.0,115290.0,1.86947133]
[1757899910842,0.01335,115300.0,115290.0,1.78891868]
[1757899911149,0.01335,115300.0,115290.0,1.86947133]
[1757899913451,0.01335,115310.0,115290.0,1.86947133]
[1757899913640,0.01335,115310.0,115300.0,0.24165795]
[1757899913840,0.01335,115310.0,115300.0,0.75165795]
[1757899914046,0.03552584,115310.0,115300.0,0.75165795]
[1757899915350,0.03552584,115310.0,115300.0,1.4791453]
[1757899915651,0.06037584,115310.0,115300.0,1.7457453]
[1757899915953,0.06037584,115310.0,115300.0,1.7453453]
[1757899916247,0.06037584,115310.0,115300.0,0.7766]
[1757899916248,0.06137584,115310.0,115300.0,0.7766]
[1757899916450,0.06137584,115310.0,115300.0,1.7455053]
[1757899916651,0.06137584,115310.0,115300.0,0.9377053]
[1757899916947,0.06137584,115310.0,115300.0,1.3554653]
[1757899916948,0.31137584,115310.0,115300.0,1.3554653]
[1757899917149,0.31137584,115310.0,115300.0,1.2354653]
[1757899917354,0.06137584,115310.0,115300.0,1.6354653]
[1757899917552,0.03852584,115310.0,115300.0,1.71601795]
[1757899917754,0.03852584,115310.0,115300.0,2.04601795]
[1757899918655,0.03852584,115310.0,115300.0,1.9654653]
[1757899919661,0.03852584,115310.0,115300.0,2.04601795]
[1757899919850,0.03852584,115310.0,115300.0,1.88475783]
[1757899920460,0.03852584,115310.0,115300.0,1.88511783]
[1757899922462,0.03852584,115310.0,115300.0,1.96551566]
[1757899922663,0.03852584,115310.0,115300.0,1.88511783]
[1757899923268,0.03852584,115310.0,115300.0,1.07699783]
[1757899923469,0.03852584,115310.0,115300.0,1.88467783]
[1757899925062,0.03852584,115310.0,115300.0,1.97136533]
[1757899925264,0.02517584,115310.0,115300.0,2.05176316]
[1757899925569,0.02517584,115310.0,115300.0,1.96507566]
[1757899925872,0.02517584,115310.0,115300.0,2.21507566]
[1757899926168,0.03827584,115310.0,115300.0,0.9966]
[1757899926373,0.03527584,115310.0,115300.0,1.88443783]
[1757899931180,0.03527584,115310.0,115300.0,1.07699783]
[1757899931379,0.03527584,115310.0,115300.0,1.88671783]
[1757899931680,0.03527584,115310.0,115300.0,1.88695783]
[1757899932180,0.03527584,115310.0,115300.0,1.88687783]
[1757899932375,0.03527584,115310.0,115300.0,1.88675783]
[1757899932574,0.03527584,115310.0,115300.0,1.88683783]
[1757899942886,0.03527584,115310.0,115300.0,1.88535783]
[1757899943189,0.03527584,115310.0,115300.0,1.07699783]
[1757899943390,0.03527584,115310.0,115300.0,1.88523783]
[1757899943688,0.03527584,115310.0,115300.0,1.88515783]
[1757899944589,0.05802584,115310.0,115300.0,0.9966]
[1757899944891,0.05802584,115310.0,115300.0,1.88491783]
[1757899945091,0.08918687,115310.0,115300.0,1.88491783]
[1757899945295,0.05802584,115310.0,115300.0,1.88491783]
[1757899945796,0.05802584,115310.0,115300.0,1.07699783]